[Event "Titled Tuesday Blitz March 14 Late 2023"]
[White "Becham, Khalid"]
[Black "Jovic, Stanoje"]
[WhiteFideId "9000275"]
[BlackFideId "905020"]
[WhiteElo "2081"]
[BlackElo "2236"]
[Result "0-1"]
[Round "07"]
[TimeControl "180+2"]
[Date "2023.03.14"]
[WhiteClock "0:00:36"]
[BlackClock "0:00:20"]

1. d4 {[%clk 0:03:00]}  Nf6 {[%clk 0:02:59]} 2. Bg5 {[%clk 0:03:01]}  c5 {[%clk 0:02:59]} 3. d5 {[%clk 0:03:00]}  Qb6 {[%clk 0:02:57]} 4. Nc3 {[%clk 0:02:13]}  Qxb2 {[%clk 0:02:57]} 5. Bd2 {[%clk 0:02:13]}  Qb6 {[%clk 0:02:57]} 6. e4 {[%clk 0:02:11]}  e5 {[%clk 0:02:56]} 7. f4 {[%clk 0:02:02]}  d6 {[%clk 0:02:56]} 8. fxe5 {[%clk 0:01:58]}  dxe5 {[%clk 0:02:56]} 9. Nf3 {[%clk 0:01:59]}  Bg4 {[%clk 0:02:55]} 10. Bc4 {[%clk 0:01:50]}  a6 {[%clk 0:02:51]} 11. O-O {[%clk 0:01:49]}  Bd6 {[%clk 0:02:51]} 12. Rb1 {[%clk 0:01:47]}  Qc7 {[%clk 0:02:48]} 13. a4 {[%clk 0:01:47]}  O-O {[%clk 0:02:47]} 14. Qe1 {[%clk 0:01:47]}  Nbd7 {[%clk 0:02:42]} 15. Qh4 {[%clk 0:01:46]}  Bh5 {[%clk 0:02:37]} 16. Rb3 {[%clk 0:01:37]}  Bg6 {[%clk 0:02:34]} 17. Rfb1 {[%clk 0:01:31]}  b6 {[%clk 0:02:34]} 18. Bg5 {[%clk 0:01:28]}  Nh5 {[%clk 0:02:22]} 19. g4 {[%clk 0:01:08]}  Nf4 {[%clk 0:02:20]} 20. Bxf4 {[%clk 0:01:07]}  exf4 {[%clk 0:02:19]} 21. Ne2 {[%clk 0:01:01]}  Bxe4 {[%clk 0:02:10]} 22. Ng5 {[%clk 0:00:59]}  Bg6 {[%clk 0:02:01]} 23. Rh3 {[%clk 0:00:56]}  h6 {[%clk 0:01:58]} 24. Ne6 {[%clk 0:00:57]}  Qa7 {[%clk 0:01:46]} 25. Nxf8 {[%clk 0:00:56]}  Rxf8 {[%clk 0:01:45]} 26. g5 {[%clk 0:00:56]}  h5 {[%clk 0:01:32]} 27. Nxf4 {[%clk 0:00:56]}  b5 {[%clk 0:01:26]} 28. Nxh5 {[%clk 0:00:52]}  f5 {[%clk 0:01:00]} 29. gxf6 {[%clk 0:00:48]}  Nxf6 {[%clk 0:00:57]} 30. Nxf6+ {[%clk 0:00:44]}  Rxf6 {[%clk 0:00:57]} 31. Qh8+ {[%clk 0:00:43]}  Kf7 {[%clk 0:00:56]} 32. Re3 {[%clk 0:00:43]}  Qd7 {[%clk 0:00:53]} 33. Bd3 {[%clk 0:00:41]}  c4 {[%clk 0:00:44]} 34. Bxg6+ {[%clk 0:00:35]}  Rxg6+ {[%clk 0:00:44]} 35. Kh1 {[%clk 0:00:36]}  Bf4 {[%clk 0:00:35]} 36. Rf1 {[%clk 0:00:30]}  Qxd5+ {[%clk 0:00:32]} 37. Ref3 {[%clk 0:00:31]}  bxa4 {[%clk 0:00:27]} 38. Qb8 {[%clk 0:00:24]}  Rf6 {[%clk 0:00:25]} 39. Qa7+ {[%clk 0:00:23]}  Kg8 {[%clk 0:00:24]} 40. Qf2 {[%clk 0:00:20]}  Bh6 {[%clk 0:00:21]} 41. Qg2 {[%clk 0:00:20]}  Rxf3 {[%clk 0:00:20]} 42. Qxf3 {[%clk 0:00:21]}  Qxf3+ {[%clk 0:00:20]} 43. Rxf3 {[%clk 0:00:22]}  Bc1 {[%clk 0:00:17]} 44. Rf1 {[%clk 0:00:22]}  Bb2 {[%clk 0:00:17]} 45. Kg2 {[%clk 0:00:21]}  a3 {[%clk 0:00:16]} 46. Kf3 {[%clk 0:00:21]}  a2 {[%clk 0:00:17]} 47. Ke4 {[%clk 0:00:22]}  a1=Q {[%clk 0:00:17]} 48. Rxa1 {[%clk 0:00:23]}  Bxa1 {[%clk 0:00:17]} 49. Kd5 {[%clk 0:00:24]}  c3 {[%clk 0:00:17]} 50. Kc6 {[%clk 0:00:24]}  Kf7 {[%clk 0:00:17]} 51. Kb6 {[%clk 0:00:24]}  Kg6 {[%clk 0:00:17]} 52. Kxa6 {[%clk 0:00:25]}  Kh5 {[%clk 0:00:17]} 53. Kb5 {[%clk 0:00:26]}  Kh4 {[%clk 0:00:17]} 54. Kc4 {[%clk 0:00:27]}  Kh3 {[%clk 0:00:17]} 55. Kd4 {[%clk 0:00:28]}  Kxh2 {[%clk 0:00:18]} 56. Ke4 {[%clk 0:00:29]}  Kg2 {[%clk 0:00:18]} 57. Kf5 {[%clk 0:00:30]}  Kf2 {[%clk 0:00:18]} 58. Kg6 {[%clk 0:00:30]}  Ke2 {[%clk 0:00:19]} 59. Kxg7 {[%clk 0:00:31]}  Kd2 {[%clk 0:00:19]} 60. Kf6 {[%clk 0:00:32]}  Kxc2 {[%clk 0:00:19]} 61. Ke5 {[%clk 0:00:33]}  Kd2 {[%clk 0:00:20]} 62. Kd4 {[%clk 0:00:34]}  c2+ {[%clk 0:00:20]} 63. Kc4 {[%clk 0:00:35]}  c1=Q+ {[%clk 0:00:20]} 64. Kd5 {[%clk 0:00:36]}  Qc3 {[%clk 0:00:20]} 65. Ke6 {[%clk 0:00:36]}  Qd4 {[%clk 0:00:20]} 0-1


[Site "https://www.chess.com"]

[Event "Titled Tuesday Blitz March 14 Late 2023"]
[White "Rios Escobar, Adan"]
[Black "Hajiyev, Kanan"]
[WhiteFideId "3403645"]
[BlackFideId "13404148"]
[WhiteElo "2376"]
[BlackElo "2103"]
[Result "0-1"]
[Round "07"]
[TimeControl "180+2"]
[Date "2023.03.14"]
[WhiteClock "0:00:06"]
[BlackClock "0:00:08"]

1. d4 {[%clk 0:02:53]}  d5 {[%clk 0:02:58]} 2. g3 {[%clk 0:02:54]}  c5 {[%clk 0:02:57]} 3. Nf3 {[%clk 0:02:51]}  cxd4 {[%clk 0:02:57]} 4. Bg2 {[%clk 0:02:32]}  Qa5+ {[%clk 0:02:56]} 5. Nbd2 {[%clk 0:02:13]}  Nc6 {[%clk 0:02:54]} 6. b4 {[%clk 0:01:30]}  Qxb4 {[%clk 0:02:48]} 7. Rb1 {[%clk 0:01:28]}  Qa5 {[%clk 0:02:40]} 8. O-O {[%clk 0:01:24]}  e5 {[%clk 0:02:40]} 9. Nb3 {[%clk 0:01:24]}  Qc7 {[%clk 0:02:36]} 10. e3 {[%clk 0:01:23]}  dxe3 {[%clk 0:02:27]} 11. Bxe3 {[%clk 0:01:24]}  Nf6 {[%clk 0:02:26]} 12. Re1 {[%clk 0:01:09]}  Bb4 {[%clk 0:02:09]} 13. Bc5 {[%clk 0:00:44]}  Bxc5 {[%clk 0:01:41]} 14. Nxc5 {[%clk 0:00:45]}  O-O {[%clk 0:01:41]} 15. h3 {[%clk 0:00:21]}  b6 {[%clk 0:01:23]} 16. Nb3 {[%clk 0:00:19]}  Bf5 {[%clk 0:01:18]} 17. Nh4 {[%clk 0:00:18]}  Be4 {[%clk 0:01:10]} 18. f3 {[%clk 0:00:16]}  Bg6 {[%clk 0:01:07]} 19. Nxg6 {[%clk 0:00:15]}  hxg6 {[%clk 0:01:08]} 20. f4 {[%clk 0:00:14]}  e4 {[%clk 0:01:07]} 21. Re2 {[%clk 0:00:13]}  Nb4 {[%clk 0:01:02]} 22. a3 {[%clk 0:00:11]}  Na2 {[%clk 0:01:01]} 23. Rd2 {[%clk 0:00:06]}  Nc3 {[%clk 0:01:01]} 24. Qc1 {[%clk 0:00:07]}  Nxb1 {[%clk 0:00:58]} 25. Qxb1 {[%clk 0:00:08]}  Rac8 {[%clk 0:00:57]} 26. Nd4 {[%clk 0:00:08]}  Qc3 {[%clk 0:00:56]} 27. Qc1 {[%clk 0:00:08]}  Qxg3 {[%clk 0:00:53]} 28. Ne2 {[%clk 0:00:04]}  Qe3+ {[%clk 0:00:52]} 29. Kh2 {[%clk 0:00:05]}  Nh5 {[%clk 0:00:47]} 30. Qd1 {[%clk 0:00:04]}  Nxf4 {[%clk 0:00:47]} 31. Nxf4 {[%clk 0:00:04]}  Qxf4+ {[%clk 0:00:48]} 32. Kh1 {[%clk 0:00:05]}  Rfd8 {[%clk 0:00:46]} 33. Rd4 {[%clk 0:00:03]}  Rc3 {[%clk 0:00:41]} 34. Rxe4 {[%clk 0:00:02]}  Rxh3+ {[%clk 0:00:25]} 35. Kg1 {[%clk 0:00:01]}  Qh2+ {[%clk 0:00:22]} 36. Kf1 {[%clk 0:00:01]}  Qh1+ {[%clk 0:00:14]} 37. Bxh1 {[%clk 0:00:01]}  Rxh1+ {[%clk 0:00:15]} 38. Ke2 {[%clk 0:00:02]}  Rxd1 {[%clk 0:00:14]} 39. Re7 {[%clk 0:00:02]}  Rc1 {[%clk 0:00:07]} 40. Kd2 {[%clk 0:00:02]}  Ra1 {[%clk 0:00:07]} 41. Rxa7 {[%clk 0:00:03]}  b5 {[%clk 0:00:08]} 42. Kd3 {[%clk 0:00:03]}  b4 {[%clk 0:00:08]} 43. a4 {[%clk 0:00:03]}  d4 {[%clk 0:00:08]} 44. a5 {[%clk 0:00:04]}  Rd5 {[%clk 0:00:07]} 45. Kc4 {[%clk 0:00:03]}  Rdxa5 {[%clk 0:00:06]} 46. Rb7 {[%clk 0:00:03]}  Rc1 {[%clk 0:00:05]} 47. Kxb4 {[%clk 0:00:03]}  Ra2 {[%clk 0:00:05]} 48. Rb8+ {[%clk 0:00:03]}  Kh7 {[%clk 0:00:05]} 49. Rd8 {[%clk 0:00:04]}  Raxc2 {[%clk 0:00:05]} 50. Rxd4 {[%clk 0:00:04]}  Rb1+ {[%clk 0:00:05]} 51. Ka3 {[%clk 0:00:04]}  Rc7 {[%clk 0:00:05]} 52. Rh4+ {[%clk 0:00:04]}  Kg8 {[%clk 0:00:05]} 53. Ra4 {[%clk 0:00:05]}  Rcb7 {[%clk 0:00:05]} 54. Ka2 {[%clk 0:00:04]}  R7b2+ {[%clk 0:00:03]} 55. Ka3 {[%clk 0:00:04]}  Ra1+ {[%clk 0:00:04]} 56. Kxb2 {[%clk 0:00:05]}  Rxa4 {[%clk 0:00:05]} 57. Kb3 {[%clk 0:00:05]}  Rf4 {[%clk 0:00:06]} 58. Kc3 {[%clk 0:00:05]}  g5 {[%clk 0:00:07]} 59. Kd3 {[%clk 0:00:06]}  Kh7 {[%clk 0:00:08]} 0-1


[Site "https://www.chess.com"]

[Event "Titled Tuesday Blitz March 14 Late 2023"]
[White "DeyanKostov"]
[Black "Popov, Mikhail"]
[BlackFideId "4146182"]
[WhiteElo "2340"]
[BlackElo "2270"]
[Result "0-1"]
[Round "07"]
[TimeControl "180+2"]
[Date "2023.03.14"]
[WhiteClock "0:00:13"]
[BlackClock "0:00:03"]

1. d4 {[%clk 0:03:00]}  Nf6 {[%clk 0:02:58]} 2. c4 {[%clk 0:03:01]}  g6 {[%clk 0:02:54]} 3. Nc3 {[%clk 0:03:01]}  Bg7 {[%clk 0:02:53]} 4. e4 {[%clk 0:03:01]}  d6 {[%clk 0:02:53]} 5. Nf3 {[%clk 0:03:01]}  O-O {[%clk 0:02:53]} 6. h3 {[%clk 0:03:02]}  e5 {[%clk 0:02:48]} 7. d5 {[%clk 0:03:02]}  a5 {[%clk 0:02:45]} 8. g4 {[%clk 0:03:01]}  Nfd7 {[%clk 0:02:42]} 9. Rg1 {[%clk 0:03:00]}  Nc5 {[%clk 0:02:41]} 10. Be3 {[%clk 0:02:59]}  c6 {[%clk 0:02:39]} 11. Be2 {[%clk 0:02:57]}  cxd5 {[%clk 0:02:38]} 12. cxd5 {[%clk 0:02:56]}  Nba6 {[%clk 0:02:25]} 13. Nd2 {[%clk 0:02:47]}  Kh8 {[%clk 0:02:23]} 14. a3 {[%clk 0:02:39]}  f5 {[%clk 0:02:03]} 15. gxf5 {[%clk 0:02:40]}  gxf5 {[%clk 0:02:03]} 16. Qc2 {[%clk 0:02:40]}  f4 {[%clk 0:01:57]} 17. Bxc5 {[%clk 0:02:39]}  Nxc5 {[%clk 0:01:58]} 18. O-O-O {[%clk 0:02:36]}  Bd7 {[%clk 0:01:44]} 19. Nf3 {[%clk 0:02:28]}  b5 {[%clk 0:01:14]} 20. Bxb5 {[%clk 0:02:14]}  Bxb5 {[%clk 0:01:14]} 21. Nxb5 {[%clk 0:02:14]}  a4 {[%clk 0:01:13]} 22. Nc3 {[%clk 0:02:13]}  Bf6 {[%clk 0:01:00]} 23. Kb1 {[%clk 0:02:11]}  Rf7 {[%clk 0:00:59]} 24. Rg4 {[%clk 0:02:08]}  Rb7 {[%clk 0:00:58]} 25. Ka2 {[%clk 0:02:04]}  Rab8 {[%clk 0:00:50]} 26. Rb1 {[%clk 0:02:02]}  Qa5 {[%clk 0:00:40]} 27. Nd2 {[%clk 0:01:58]}  Nb3 {[%clk 0:00:38]} 28. Nc4 {[%clk 0:01:52]}  Qa6 {[%clk 0:00:38]} 29. Nd2 {[%clk 0:01:44]}  Nc5 {[%clk 0:00:31]} 30. Rgg1 {[%clk 0:01:10]}  Bd8 {[%clk 0:00:30]} 31. Qd1 {[%clk 0:01:01]}  Ba5 {[%clk 0:00:22]} 32. Qg4 {[%clk 0:00:30]}  Qd3 {[%clk 0:00:10]} 33. Qg5 {[%clk 0:00:23]}  Rxb2+ {[%clk 0:00:09]} 34. Rxb2 {[%clk 0:00:22]}  Rxb2+ {[%clk 0:00:08]} 35. Ka1 {[%clk 0:00:19]}  Rb1+ {[%clk 0:00:04]} 36. Ncxb1 {[%clk 0:00:15]}  Bc3+ {[%clk 0:00:04]} 37. Ka2 {[%clk 0:00:13]}  Qc2# {[%clk 0:00:03]} 0-1


[Site "https://www.chess.com"]

[Event "Titled Tuesday Blitz March 14 Late 2023"]
[White "Stelmaszyk, Nico"]
[Black "Tagliati, Eleonore"]
[WhiteFideId "16200462"]
[BlackFideId "45172234"]
[WhiteElo "2255"]
[BlackElo "2237"]
[Result "0-1"]
[Round "07"]
[TimeControl "180+2"]
[Date "2023.03.14"]
[WhiteClock "0:00:30"]
[BlackClock "0:00:14"]

1. e4 {[%clk 0:03:00]}  c5 {[%clk 0:03:00]} 2. c3 {[%clk 0:03:01]}  Nf6 {[%clk 0:02:59]} 3. e5 {[%clk 0:03:01]}  Nd5 {[%clk 0:02:59]} 4. Nf3 {[%clk 0:03:02]}  Nc6 {[%clk 0:02:59]} 5. Bc4 {[%clk 0:03:00]}  Nb6 {[%clk 0:02:58]} 6. Bb3 {[%clk 0:03:01]}  d6 {[%clk 0:02:58]} 7. exd6 {[%clk 0:02:59]}  Qxd6 {[%clk 0:02:59]} 8. Na3 {[%clk 0:02:53]}  a6 {[%clk 0:02:49]} 9. O-O {[%clk 0:02:51]}  Bf5 {[%clk 0:02:27]} 10. Bxf7+ {[%clk 0:02:49]}  Kxf7 {[%clk 0:02:23]} 11. Qb3+ {[%clk 0:02:48]}  Nd5 {[%clk 0:02:21]} 12. Nc4 {[%clk 0:02:47]}  Qd8 {[%clk 0:02:14]} 13. Qxb7 {[%clk 0:02:47]}  Rc8 {[%clk 0:02:11]} 14. d4 {[%clk 0:02:44]}  Qc7 {[%clk 0:02:02]} 15. Qxc6 {[%clk 0:02:41]}  Qxc6 {[%clk 0:02:00]} 16. Nce5+ {[%clk 0:02:36]}  Ke8 {[%clk 0:01:58]} 17. Nxc6 {[%clk 0:02:34]}  Rxc6 {[%clk 0:01:59]} 18. c4 {[%clk 0:02:28]}  Nb4 {[%clk 0:01:55]} 19. d5 {[%clk 0:02:28]}  Rc8 {[%clk 0:01:51]} 20. Be3 {[%clk 0:02:20]}  Bd3 {[%clk 0:01:49]} 21. Rfc1 {[%clk 0:02:18]}  Nc2 {[%clk 0:01:45]} 22. Ne5 {[%clk 0:02:17]}  Bf5 {[%clk 0:01:41]} 23. g4 {[%clk 0:02:15]}  Be4 {[%clk 0:01:39]} 24. f3 {[%clk 0:02:15]}  Nxe3 {[%clk 0:01:20]} 25. fxe4 {[%clk 0:02:12]}  g6 {[%clk 0:01:16]} 26. h3 {[%clk 0:01:56]}  Bg7 {[%clk 0:01:14]} 27. Nd3 {[%clk 0:01:55]}  Bd4 {[%clk 0:01:13]} 28. Kh2 {[%clk 0:01:53]}  Rf8 {[%clk 0:01:07]} 29. Re1 {[%clk 0:01:50]}  Nc2 {[%clk 0:01:05]} 30. Rad1 {[%clk 0:01:50]}  Nxe1 {[%clk 0:01:05]} 31. Rxe1 {[%clk 0:01:50]}  Rb8 {[%clk 0:01:03]} 32. b3 {[%clk 0:01:51]}  a5 {[%clk 0:01:03]} 33. e5 {[%clk 0:01:45]}  Rf3 {[%clk 0:01:01]} 34. Nc1 {[%clk 0:01:41]}  Rf2+ {[%clk 0:01:01]} 35. Kg3 {[%clk 0:01:41]}  Rb2 {[%clk 0:00:57]} 36. e6 {[%clk 0:01:39]}  Bf6 {[%clk 0:00:55]} 37. h4 {[%clk 0:01:38]}  h6 {[%clk 0:00:54]} 38. Nd3 {[%clk 0:01:35]}  Rxa2 {[%clk 0:00:52]} 39. Nxc5 {[%clk 0:01:35]}  a4 {[%clk 0:00:43]} 40. bxa4 {[%clk 0:01:33]}  Rbb2 {[%clk 0:00:42]} 41. Ne4 {[%clk 0:01:25]}  Rg2+ {[%clk 0:00:39]} 42. Kf3 {[%clk 0:01:24]}  Bxh4 {[%clk 0:00:39]} 43. Rh1 {[%clk 0:01:23]}  g5 {[%clk 0:00:35]} 44. c5 {[%clk 0:01:18]}  Rgb2 {[%clk 0:00:34]} 45. Ke3 {[%clk 0:01:13]}  Rxa4 {[%clk 0:00:28]} 46. Nc3 {[%clk 0:00:56]}  Ra3 {[%clk 0:00:25]} 47. Kd3 {[%clk 0:00:50]}  Rbb3 {[%clk 0:00:24]} 48. Rc1 {[%clk 0:00:51]}  Be1 {[%clk 0:00:21]} 49. Ke4 {[%clk 0:00:44]}  Bxc3 {[%clk 0:00:20]} 50. d6 {[%clk 0:00:42]}  Rb4+ {[%clk 0:00:20]} 51. Kf5 {[%clk 0:00:42]}  Rf4+ {[%clk 0:00:18]} 52. Kg6 {[%clk 0:00:42]}  Rf6+ {[%clk 0:00:18]} 53. Kh7 {[%clk 0:00:42]}  Rxe6 {[%clk 0:00:16]} 54. dxe7 {[%clk 0:00:39]}  Kxe7 {[%clk 0:00:13]} 55. c6 {[%clk 0:00:39]}  Be5 {[%clk 0:00:13]} 56. c7 {[%clk 0:00:38]}  Bxc7 {[%clk 0:00:13]} 57. Rxc7+ {[%clk 0:00:37]}  Kf6 {[%clk 0:00:14]} 58. Kxh6 {[%clk 0:00:30]}  Rh3# {[%clk 0:00:14]} 0-1


[Site "https://www.chess.com"]

[Event "Titled Tuesday Blitz March 14 Late 2023"]
[White "marik_spb"]
[Black "babbilator"]
[WhiteElo "2412"]
[BlackElo "2232"]
[Result "1-0"]
[Round "07"]
[TimeControl "180+2"]
[Date "2023.03.14"]
[WhiteClock "0:00:18"]
[BlackClock "0:00:01"]

1. d4 {[%clk 0:03:00]}  Nf6 {[%clk 0:02:58]} 2. c4 {[%clk 0:03:00]}  e6 {[%clk 0:02:58]} 3. Nf3 {[%clk 0:03:00]}  c5 {[%clk 0:02:57]} 4. g3 {[%clk 0:03:00]}  cxd4 {[%clk 0:02:51]} 5. Nxd4 {[%clk 0:03:01]}  Nc6 {[%clk 0:02:47]} 6. Bg2 {[%clk 0:03:01]}  Qb6 {[%clk 0:02:46]} 7. Nxc6 {[%clk 0:02:58]}  bxc6 {[%clk 0:02:43]} 8. O-O {[%clk 0:02:58]}  d5 {[%clk 0:02:27]} 9. b3 {[%clk 0:02:53]}  Be7 {[%clk 0:02:20]} 10. Nc3 {[%clk 0:02:48]}  O-O {[%clk 0:02:13]} 11. Be3 {[%clk 0:02:38]}  Qa5 {[%clk 0:02:05]} 12. Rc1 {[%clk 0:02:34]}  Ba6 {[%clk 0:02:04]} 13. cxd5 {[%clk 0:01:17]}  cxd5 {[%clk 0:02:03]} 14. Qd4 {[%clk 0:01:09]}  Rfc8 {[%clk 0:01:54]} 15. Rfd1 {[%clk 0:01:08]}  Bb4 {[%clk 0:01:09]} 16. Bd2 {[%clk 0:00:55]}  Rc7 {[%clk 0:00:46]} 17. Nxd5 {[%clk 0:00:33]}  Nxd5 {[%clk 0:00:35]} 18. Bxb4 {[%clk 0:00:19]}  Qb5 {[%clk 0:00:01]} 19. Rxc7 {[%clk 0:00:18]} 1-0


[Site "https://www.chess.com"]

[Event "Titled Tuesday Blitz March 14 Late 2023"]
[White "Zamorano, Jorge"]
[Black "Zampronha, Wladimir Camilo"]
[WhiteFideId "173770"]
[BlackFideId "2103087"]
[WhiteElo "2331"]
[BlackElo "2176"]
[Result "1-0"]
[Round "07"]
[TimeControl "180+2"]
[Date "2023.03.14"]
[WhiteClock "0:00:15"]
[BlackClock "0:00:07"]

1. e4 {[%clk 0:02:59]}  c5 {[%clk 0:03:00]} 2. Nf3 {[%clk 0:02:58]}  e6 {[%clk 0:03:01]} 3. d4 {[%clk 0:02:58]}  cxd4 {[%clk 0:03:02]} 4. Nxd4 {[%clk 0:02:58]}  Nc6 {[%clk 0:03:02]} 5. Nc3 {[%clk 0:02:58]}  Qc7 {[%clk 0:03:03]} 6. Be3 {[%clk 0:02:56]}  a6 {[%clk 0:03:03]} 7. Be2 {[%clk 0:02:47]}  Nf6 {[%clk 0:03:03]} 8. Nxc6 {[%clk 0:02:38]}  bxc6 {[%clk 0:02:53]} 9. O-O {[%clk 0:02:32]}  d5 {[%clk 0:02:53]} 10. exd5 {[%clk 0:02:14]}  exd5 {[%clk 0:02:52]} 11. Na4 {[%clk 0:01:57]}  Rb8 {[%clk 0:02:51]} 12. c4 {[%clk 0:01:56]}  Bd6 {[%clk 0:02:39]} 13. h3 {[%clk 0:01:54]}  O-O {[%clk 0:02:36]} 14. Rc1 {[%clk 0:01:53]}  Re8 {[%clk 0:02:26]} 15. Bf3 {[%clk 0:01:46]}  Be6 {[%clk 0:02:20]} 16. cxd5 {[%clk 0:01:35]}  Bxd5 {[%clk 0:02:13]} 17. b3 {[%clk 0:01:32]}  Bf4 {[%clk 0:02:01]} 18. Bxd5 {[%clk 0:00:51]}  Nxd5 {[%clk 0:02:00]} 19. Bxf4 {[%clk 0:00:46]}  Nxf4 {[%clk 0:01:54]} 20. Rc4 {[%clk 0:00:46]}  Qe5 {[%clk 0:01:39]} 21. Qf3 {[%clk 0:00:43]}  Ne2+ {[%clk 0:01:25]} 22. Kh1 {[%clk 0:00:43]}  Nd4 {[%clk 0:01:21]} 23. Qg3 {[%clk 0:00:37]}  Qe2 {[%clk 0:01:13]} 24. Rfc1 {[%clk 0:00:28]}  Nf5 {[%clk 0:00:55]} 25. Qf4 {[%clk 0:00:28]}  g6 {[%clk 0:00:50]} 26. R4c2 {[%clk 0:00:27]}  Qe7 {[%clk 0:00:37]} 27. Rxc6 {[%clk 0:00:24]}  Rb4 {[%clk 0:00:35]} 28. R6c4 {[%clk 0:00:23]}  Rxc4 {[%clk 0:00:35]} 29. Qxc4 {[%clk 0:00:22]}  a5 {[%clk 0:00:32]} 30. Nc5 {[%clk 0:00:20]}  Qg5 {[%clk 0:00:26]} 31. Rd1 {[%clk 0:00:13]}  Nh4 {[%clk 0:00:23]} 32. Rg1 {[%clk 0:00:13]}  Re1 {[%clk 0:00:18]} 33. Qg4 {[%clk 0:00:14]}  Rxg1+ {[%clk 0:00:17]} 34. Kxg1 {[%clk 0:00:15]}  Qc1+ {[%clk 0:00:15]} 35. Kh2 {[%clk 0:00:14]}  Qxc5 {[%clk 0:00:14]} 36. Qxh4 {[%clk 0:00:14]}  Qa3 {[%clk 0:00:14]} 37. Qa4 {[%clk 0:00:12]}  Qxa4 {[%clk 0:00:11]} 38. bxa4 {[%clk 0:00:12]}  Kg7 {[%clk 0:00:12]} 39. Kg3 {[%clk 0:00:12]}  Kf6 {[%clk 0:00:13]} 40. Kf4 {[%clk 0:00:13]}  Ke6 {[%clk 0:00:13]} 41. Ke4 {[%clk 0:00:14]}  Kd6 {[%clk 0:00:13]} 42. Kd4 {[%clk 0:00:15]}  Kc6 {[%clk 0:00:13]} 43. Kc4 {[%clk 0:00:13]}  f6 {[%clk 0:00:13]} 44. f4 {[%clk 0:00:13]}  h6 {[%clk 0:00:13]} 45. g3 {[%clk 0:00:13]}  f5 {[%clk 0:00:13]} 46. h4 {[%clk 0:00:13]}  h5 {[%clk 0:00:12]} 47. a3 {[%clk 0:00:13]}  Kd6 {[%clk 0:00:05]} 48. Kb5 {[%clk 0:00:14]}  Kd5 {[%clk 0:00:06]} 49. Kxa5 {[%clk 0:00:14]}  Kc5 {[%clk 0:00:06]} 50. Ka6 {[%clk 0:00:14]}  Kc6 {[%clk 0:00:07]} 51. a5 {[%clk 0:00:15]} 1-0


[Site "https://www.chess.com"]

[Event "Titled Tuesday Blitz March 14 Late 2023"]
[White "Todev, Simeon"]
[Black "Rodrigues, Tiago Pereira"]
[WhiteFideId "2925133"]
[BlackFideId "2101203"]
[WhiteElo "1938"]
[BlackElo "2168"]
[Result "0-1"]
[Round "07"]
[TimeControl "180+2"]
[Date "2023.03.14"]
[WhiteClock "0:00:03"]
[BlackClock "0:00:28"]

1. e4 {[%clk 0:02:58]}  c5 {[%clk 0:02:59]} 2. Nf3 {[%clk 0:02:58]}  a6 {[%clk 0:02:58]} 3. c4 {[%clk 0:02:55]}  e6 {[%clk 0:02:58]} 4. Nc3 {[%clk 0:02:55]}  d6 {[%clk 0:02:58]} 5. d3 {[%clk 0:02:55]}  Nd7 {[%clk 0:02:57]} 6. Be3 {[%clk 0:02:56]}  Ngf6 {[%clk 0:02:57]} 7. g3 {[%clk 0:02:56]}  Ng4 {[%clk 0:02:57]} 8. Bg2 {[%clk 0:02:57]}  Nxe3 {[%clk 0:02:57]} 9. fxe3 {[%clk 0:02:58]}  Be7 {[%clk 0:02:55]} 10. O-O {[%clk 0:02:59]}  Qc7 {[%clk 0:02:52]} 11. Qe2 {[%clk 0:02:56]}  O-O {[%clk 0:02:51]} 12. d4 {[%clk 0:02:56]}  Rb8 {[%clk 0:02:43]} 13. Rac1 {[%clk 0:02:54]}  b5 {[%clk 0:02:35]} 14. cxb5 {[%clk 0:02:33]}  axb5 {[%clk 0:02:36]} 15. Nxb5 {[%clk 0:02:34]}  Qa5 {[%clk 0:02:36]} 16. Nc3 {[%clk 0:02:20]}  Ba6 {[%clk 0:02:35]} 17. Qf2 {[%clk 0:02:13]}  Bxf1 {[%clk 0:02:34]} 18. Rxf1 {[%clk 0:02:14]}  Qb4 {[%clk 0:02:30]} 19. Nd1 {[%clk 0:02:11]}  e5 {[%clk 0:02:23]} 20. Bh3 {[%clk 0:02:01]}  Nf6 {[%clk 0:02:18]} 21. dxe5 {[%clk 0:01:59]}  Nxe4 {[%clk 0:02:18]} 22. Qc2 {[%clk 0:01:54]}  d5 {[%clk 0:02:10]} 23. e6 {[%clk 0:01:45]}  f5 {[%clk 0:02:10]} 24. Ne5 {[%clk 0:01:41]}  g6 {[%clk 0:01:49]} 25. Nd7 {[%clk 0:01:29]}  Qd2 {[%clk 0:01:44]} 26. Qxd2 {[%clk 0:01:25]}  Nxd2 {[%clk 0:01:43]} 27. Rf2 {[%clk 0:01:26]}  Ne4 {[%clk 0:01:42]} 28. Rc2 {[%clk 0:01:11]}  c4 {[%clk 0:01:40]} 29. Nxf8 {[%clk 0:01:02]}  Kxf8 {[%clk 0:01:39]} 30. Bg2 {[%clk 0:00:51]}  Bg5 {[%clk 0:01:26]} 31. Bxe4 {[%clk 0:00:47]}  fxe4 {[%clk 0:01:27]} 32. h4 {[%clk 0:00:26]}  Bf6 {[%clk 0:01:26]} 33. Rd2 {[%clk 0:00:07]}  Rb5 {[%clk 0:01:25]} 34. a4 {[%clk 0:00:06]}  Ra5 {[%clk 0:01:18]} 35. Nc3 {[%clk 0:00:05]}  Bxc3 {[%clk 0:01:18]} 36. bxc3 {[%clk 0:00:06]}  Ke7 {[%clk 0:01:19]} 37. Rb2 {[%clk 0:00:06]}  Rxa4 {[%clk 0:01:12]} 38. Rb7+ {[%clk 0:00:05]}  Kxe6 {[%clk 0:01:13]} 39. Rxh7 {[%clk 0:00:06]}  Ra3 {[%clk 0:01:11]} 40. Rg7 {[%clk 0:00:04]}  Kf6 {[%clk 0:01:05]} 41. Rd7 {[%clk 0:00:04]}  Ke5 {[%clk 0:01:02]} 42. Re7+ {[%clk 0:00:03]}  Kf5 {[%clk 0:01:02]} 43. Kg2 {[%clk 0:00:02]}  Rxc3 {[%clk 0:01:01]} 44. Rf7+ {[%clk 0:00:02]}  Ke6 {[%clk 0:01:00]} 45. Rg7 {[%clk 0:00:02]}  Kf6 {[%clk 0:00:55]} 46. Rd7 {[%clk 0:00:02]}  Rd3 {[%clk 0:00:55]} 47. g4 {[%clk 0:00:02]}  c3 {[%clk 0:00:54]} 48. Rd6+ {[%clk 0:00:02]}  Kf7 {[%clk 0:00:53]} 49. Kg3 {[%clk 0:00:03]}  Rxe3+ {[%clk 0:00:45]} 50. Kf4 {[%clk 0:00:03]}  Rd3 {[%clk 0:00:40]} 51. Ke5 {[%clk 0:00:03]}  e3 {[%clk 0:00:36]} 52. Rd7+ {[%clk 0:00:03]}  Ke8 {[%clk 0:00:36]} 53. Ra7 {[%clk 0:00:02]}  e2 {[%clk 0:00:35]} 54. Ra8+ {[%clk 0:00:02]}  Kd7 {[%clk 0:00:35]} 55. Ra7+ {[%clk 0:00:03]}  Kc6 {[%clk 0:00:35]} 56. Ra6+ {[%clk 0:00:03]}  Kb5 {[%clk 0:00:29]} 57. Ra1 {[%clk 0:00:03]}  Rd1 {[%clk 0:00:28]} 0-1


[Site "https://www.chess.com"]